Cogmind - Beta 15 @@@ ROGUE MODE // 2025.07.06 @ 15:44:41 Player: BlobtheGreat Result: Destroyed by P-60 Hacker with Shock Rifle Performance ------------- Evolutions (4) 2000 Regions Visited (11) 2200 Robots Destroyed (169) 845 Value Destroyed (4929) 4929 Prototype IDs (23) 460 Alien Tech Used (0) 0 Bonus (341) 341 TOTAL SCORE: 10775 Bonus ------- Follower Combat Kills 41 Met Data Miner 300 Cogmind --------- Core Integrity 0/850 Matter 300/300 Energy 100/100 System Corruption 21% Temperature Cool (67) Movement Core (700) Ox13 Location -6/Factory Parts ------- > --- POWER (1) -------- (None) > --- PROPULSION (4) --- (None) > --- UTILITY (7) ------ High-capacity Storage Unit Advanced Targeting Computer > --- WEAPON (3) ------- (None) > --- INVENTORY (20) --- Improved Deuterium Engine Improved Sensor Array Weapon Cycler Transmission Jammer Makeshift Hacking Suite Thief Drone Bay (3/3) Precision Grenade Launcher Precision Grenade Launcher Improved Datajack Great Maul Axe Axe Greatsword Peak State ------------ > --- POWER ------------ Neutrino Core > --- PROPULSION ------- Light Treads Spiked Treads Armored Treads Medium Treads > --- UTILITY ---------- Cryofiber Web High-capacity Storage Unit Advanced Sensor Array Advanced Targeting Computer Target Analyzer Weapon Cycler Improved Medium Armor Plating > --- WEAPON ----------- Lightning Gun Plasma Cannon Heavy Battle Rifle > --- INVENTORY -------- Cooled Ion Engine Improved Deuterium Engine Improved Deuterium Engine Medium Treads Improved Sensor Array Weapon Cycler Transmission Jammer Makeshift Hacking Suite Thief Drone Bay Heavy Laser Heavy Plasma Cannon High-powered Shotgun Precision Grenade Launcher Precision Grenade Launcher Improved Datajack Great Maul Axe Axe Greatsword [Rating: 58] Favorites ----------- Power Improved Ion Engine Engine Improved Ion Engine Power Core Neutrino Core Propulsion Light Treads Treads Light Treads Wheel Compact Wheel Hover Unit Improved Airjet Flight Unit Improved VTOL Module Utility High-capacity Storage Unit Device Improved Heat Sink Storage High-capacity Storage Unit Processor Advanced Targeting Computer Protection Improved Medium Armor Plating Weapon Lightning Gun Energy Gun Lightning Gun Energy Cannon Improved EM Pulse Cannon Ballistic Gun Minigun Launcher Grenade Launcher Impact Weapon Great Maul Slashing Weapon Axe Special Melee Weapon Improved Datajack Build | -11 -10 -10 -9 -9 -8 -7 -7 -7 -7 -6 -6 ------- Run | Yrd Mat Min Mat Min Mat Fac Low Low Dat Pro Fac Slots Evolved 8 | . . . 2 . 2 2 . . . . 2 Power . | . . . . . . . . . . . . Propulsion 2 | . . . 1 . . 1 . . . . . Utility 5 | . . . . . 2 1 . . . . 2 Weapon 1 | . . . 1 . . . . . . . . Parts Attached 132 | 8 3 1 29 7 33 23 7 4 . 3 14 Power 12 | 1 . . 3 1 2 2 1 . . . 2 Engine 10 | 1 . . 3 1 1 2 . . . . 2 Core 2 | . . . . . 1 . 1 . . . . Reactor . | . . . . . . . . . . . . Propulsion 46 | 2 . . 11 4 15 9 2 . . 2 1 Treads 41 | 2 . . 11 4 13 6 2 . . 2 1 Leg . | . . . . . . . . . . . . Wheel 1 | . . . . . 1 . . . . . . Hover 1 | . . . . . . 1 . . . . . Flight 3 | . . . . . 1 2 . . . . . Utility 30 | 2 1 1 3 1 7 5 2 1 . 1 6 Device 12 | 1 . 1 . . 3 2 . . . 1 4 Storage 4 | 1 1 . 1 . . 1 . . . . . Processor 5 | . . . . . 2 1 1 . . . 1 Hackware . | . . . . . . . . . . . . Protection 9 | . . . 2 1 2 1 1 1 . . 1 Artifact . | . . . . . . . . . . . . Weapon 44 | 3 2 . 12 1 9 7 2 3 . . 5 Energy Gun 15 | . . . 4 1 3 4 . 1 . . 2 Energy Cannon 4 | . . . . . . . 2 . . . 2 Ballistic Gun 16 | 3 1 . 6 . 4 . . 1 . . 1 Ballistic Cannon . | . . . . . . . . . . . . Launcher 4 | . 1 . 1 . . 1 . 1 . . . Special Weapon . | . . . . . . . . . . . . Impact Weapon 2 | . . . 1 . 1 . . . . . . Slashing Weapon 2 | . . . . . 1 1 . . . . . Piercing Weapon . | . . . . . . . . . . . . Special Melee Weapon 1 | . . . . . . 1 . . . . . Unidentified Prototypes 13 | . . 1 3 . 3 4 . . . . 2 Parts Lost 61 | . . . 4 12 9 9 4 1 . 2 20 Power 5 | . . . 2 . 1 . . . . . 2 Propulsion 15 | . . . . 4 2 2 1 . . 1 5 Utility 15 | . . . . 3 2 2 1 . . 1 6 Weapon 26 | . . . 2 5 4 5 2 1 . . 7 Highest Loss Streak 9 | . . . 2 8 7 4 2 1 . 2 9 To Critical Strikes . | . . . . . . . . . . . . Average Backups 17 | 4 12 17 19 17 18 19 19 18 19 18 15 Power 1 | . 1 1 . . 2 2 3 3 3 3 1 Propulsion 2 | 2 2 3 3 3 2 1 . . 1 . . Utility 6 | . 4 6 8 7 5 7 8 7 7 6 5 Weapon 6 | . 4 6 4 3 7 7 6 6 7 7 7 Tool/Special . | . . . . . . . . . . . . Unused Backups 45 | . 3 . 11 . 17 9 . . . . 5 Power 5 | . . . . . 3 2 . . . . . Propulsion 6 | . 2 . 2 . 1 1 . . . . . Utility 17 | . . . 5 . 7 2 . . . . 3 Weapon 14 | . . . 4 . 4 4 . . . . 2 Tool/Special 3 | . 1 . . . 2 . . . . . . Average Slot Usage (%) 96 | . 100 100 98 85 97 99 95 99 100 97 76 Engine 7 | . 14 14 10 11 7 6 3 . . . 4 Core 1 | . . . . . 1 . 4 7 7 7 . Treads 27 | . 28 28 32 32 25 29 29 30 30 28 11 Device 9 | . 14 14 5 1 8 11 7 7 7 6 18 Storage 9 | . 14 14 11 11 8 7 7 7 7 7 6 Processor 7 | . . . . . 8 10 15 16 15 15 12 Protection 5 | . . . 5 6 8 7 6 6 7 7 5 Energy Gun 9 | . . . 14 2 12 18 9 6 7 7 5 Energy Cannon 1 | . . . . . . . 8 8 7 7 5 Ballistic Gun 12 | . 25 28 17 20 13 3 . 5 7 7 2 Peak Build Rating 58 | 7 8 14 20 21 33 46 49 50 49 49 58 Average Rating 29 | 5 7 9 17 16 29 41 45 48 49 48 44 On Entrance 26 | . 7 8 9 16 12 33 41 45 49 49 49 Naked Turns . | . . . . . . . . . . . . Heaviest Build 80 | 14 51 52 63 65 67 71 80 80 77 77 79 Greatest Support 94 | 40 40 40 60 63 63 94 94 91 91 91 88 Greatest Overweight (x) 23 | . 1 1 1 1 3 1 1 . . 1 23 Average Overweight (x) . | . . 1 . . 1 . . . . . 3 Largest Inventory Capacity 20 | 8 20 20 20 20 20 20 20 20 20 20 20 Average Capacity 19 | 7 17 20 20 20 19 20 20 20 20 20 20 Most Carried 20 | 7 16 18 20 20 20 20 20 20 20 20 20 Average Carried 17 | 4 12 17 19 17 18 19 19 19 20 19 16 Final Capacity 20 | 8 20 20 20 20 20 20 20 20 20 20 20 Final Carried 20 | 7 16 18 20 14 20 20 18 20 20 19 14 Class Distribution -------------------- 46% | Scavenger-Gunner 25% | Mutant 11% | Scavenger-Tank 9% | Gunner 5% | Scavenger-Mutant Dominant Class ---------------- Mutant | -10/Materials Mutant | -10/Mines Scavenger-Tank | -9/Materials Scavenger-Tank | -9/Mines Scavenger-Gunner | -8/Materials Scavenger-Gunner | -7/Factory Scavenger-Mutant | -7/Lower Caves Scavenger-Gunner | -7/Lower Caves Scavenger-Gunner | -7/Data Miner Gunner | -6/Proximity Caves Mutant | -6/Factory Resources | -11 -10 -10 -9 -9 -8 -7 -7 -7 -7 -6 -6 ----------- Run | Yrd Mat Min Mat Min Mat Fac Low Low Dat Pro Fac Matter Collected 4036 | 298 254 49 1035 409 964 426 128 192 . 84 197 Remotely . | . . . . . . . . . . . . Salvage Created 7014 | 150 339 . 1938 425 1905 1213 501 63 . 74 406 Parts 398 | 14 28 . 130 26 99 59 18 5 . 1 18 Haulers Intercepted 14 | . 2 . 5 . 5 2 . . . . . Recyclers Shooed 7 | . . . 2 . 2 1 . . . . 2 Parts Field Recycled . | . . . . . . . . . . . . Retrieved Matter . | . . . . . . . . . . . . Parts Self-Destructed 17 | . . . . . . . 13 3 . 1 . Prevented 6 | . . . . . . . 6 . . . . Kills | -11 -10 -10 -9 -9 -8 -7 -7 -7 -7 -6 -6 ------- Run | Yrd Mat Min Mat Min Mat Fac Low Low Dat Pro Fac Combat Hostiles Destroyed 133 | . 9 . 30 28 31 14 9 5 . 1 6 Melee 1 | . . . . 1 . . . . . . . Guns 92 | . 9 . 25 8 27 14 5 . . 1 3 Cannons 7 | . . . . . . . 3 1 . . 3 AOE 32 | . . . 5 19 4 . . 4 . . . Classes Destroyed 18 | 3 4 . 5 2 2 1 1 . . . . Worker 10 | 1 2 . 3 . 1 . . . . . 3 Builder 2 | . . . 2 . . . . . . . . Tunneler 5 | 3 . . 1 . . . . . . . 1 Hauler 14 | . 2 . 5 . 5 2 . . . . . Recycler 12 | 1 . . 3 1 4 3 . . . . . Mechanic 1 | . . . 1 . . . . . . . . Operator 3 | . . . 2 . 1 . . . . . . Watcher 7 | . 2 . 3 . 2 . . . . . . Swarmer 30 | . 6 . 7 4 7 . 2 4 . . . Grunt 37 | . 3 . 13 2 15 . 4 . . . . Brawler 1 | . . . . . 1 . . . . . . Duelist 3 | . . . 1 1 1 . . . . . . Sentry 23 | . . . 9 1 6 4 1 . . 1 1 Demolisher 2 | . . . . 2 . . . . . . . Hunter 10 | . . . . . 1 6 . . . . 3 Programmer 9 | . . . . . . 4 2 1 . . 2 Samaritan 1 | . . . . . . . 1 . . . . Assembled 18 | . . . . 18 . . . . . . . Best Kill Streak 18 | 2 3 . 7 18 8 2 4 4 . 1 2 Combat Bots Only 18 | . 3 . 5 18 6 2 4 4 . 1 1 Max Kills in Single Turn 5 | 1 1 . 4 3 5 2 2 3 . 1 2 Gunslinging 1 | . . . 1 1 1 . . . . . . Exploded 4 | . . . 4 3 3 . . 3 . . . Melee 1 | . . . . 1 . . . . . . . Uniques/NPCs Destroyed . | . . . . . . . . . . . . Combat | -11 -10 -10 -9 -9 -8 -7 -7 -7 -7 -6 -6 -------- Run | Yrd Mat Min Mat Min Mat Fac Low Low Dat Pro Fac Hostile Shots Fired 930 | . 38 . 125 78 151 196 57 16 . 36 233 Missed 267 | . 9 . 38 18 38 73 19 4 . 16 52 Hits 663 | . 29 . 87 60 113 123 38 12 . 20 181 Melee 11 | . . . 1 3 7 . . . . . . Projectile 652 | . 29 . 86 57 106 123 38 12 . 20 181 AOE 23 | . . . . 22 . 1 . . . . . Critical Strikes 26 | . . . 3 4 7 5 . . . . 7 Damage Taken 10360 | . 321 . 1165 1491 1965 1376 615 176 . 138 3113 Core 1524 | . 31 . 183 161 216 67 13 . . . 853 Absorbed by Shields . | . . . . . . . . . . . . Core Remaining (%) 69 | 100 . 87 . 14 60 . . . . 88 . Volleys Fired 390 | 16 45 . 84 41 82 49 29 6 . 4 34 Largest 3 | 2 2 . 3 3 3 3 3 3 . 3 3 Hottest 239 | 40 50 . 113 91 141 190 229 168 . 168 239 Shots Fired 978 | 32 87 . 221 87 239 140 70 13 . 12 77 Gun 869 | 32 83 . 217 73 237 140 37 7 . 9 34 Cannon 82 | . . . . . . . 33 3 . 3 43 Launcher 27 | . 4 . 4 14 2 . . 3 . . . Special . | . . . . . . . . . . . . Kinetic 476 | 32 83 . 136 60 126 21 . 3 . 5 10 Thermal 193 | . . . . . 81 28 21 2 . 3 58 Explosive 27 | . 4 . 4 14 2 . . 3 . . . Electromagnetic 282 | . . . 81 13 30 91 49 5 . 4 9 Robot Hit Streak 24 | 4 8 . 22 24 22 15 19 6 . 10 10 Robot Miss Streak 7 | 3 2 . 3 7 4 3 4 1 . 2 3 Penetration Max . | . . . . . . . . . . . . Secondary Targets 22 | . 3 . 6 4 8 1 . . . . . Max Gunslinging Chain 2 | . 1 . 2 1 1 1 . . . . . Shots Hit Robots 638 | 17 54 . 154 47 156 93 54 8 . 7 48 Core Hits 326 | 8 19 . 84 49 63 44 24 9 . 3 23 Critical Kills 1 | . . . 1 . . . . . . . . Critical Parts Destroyed 3 | . 1 . . 1 1 . . . . . . Critical Strikes 20 | . 1 . 1 1 7 5 1 . . 1 3 Burn 8 | . . . . . 5 . . . . . 3 Destroy 5 | . 1 . 1 1 1 1 . . . . . Corrupt 7 | . . . . . 1 4 1 . . 1 . Melee Attacks 9 | . . . 1 . 3 4 1 . . . . Impact 2 | . . . 1 . 1 . . . . . . Slashing 6 | . . . . . 2 4 . . . . . Piercing . | . . . . . . . . . . . . Sneak Attacks 1 | . . . . . . . 1 . . . . Combat Hostiles . | . . . . . . . . . . . . Follow-up Attacks . | . . . . . . . . . . . . Damage Inflicted 13891 | 212 598 . 3168 1791 3504 1699 980 536 . 141 1262 Guns 9649 | 212 548 . 2583 681 2881 1671 535 39 . 117 382 Cannons 1407 | . . . . . . . 445 71 . 24 867 Explosions 2759 | . 48 . 581 1099 605 . . 426 . . . Melee . | . . . . . . . . . . . . Ramming 76 | . 2 . 4 11 18 28 . . . . 13 Kinetic 4460 | 212 548 . 1379 527 1387 211 . 31 . 68 97 Thermal 3681 | . . . 331 52 1231 482 511 65 . 24 985 Explosive 2247 | . 48 . 250 1047 476 . . 426 . . . Electromagnetic 3427 | . . . 1204 154 392 978 469 14 . 49 167 Impact . | . . . . . . . . . . . . Slashing . | . . . . . . . . . . . . Piercing . | . . . . . . . . . . . . Highest Corruption 21 | . . . 4 4 3 6 8 8 8 8 21 Average Corruption 4 | . . . 2 4 3 3 6 8 8 8 9 Corruption Purged . | . . . . . . . . . . . . Corruption Blocked . | . . . . . . . . . . . . Effects 193 | . . . 26 25 25 24 29 36 5 18 5 Message Errors 46 | . . . 7 8 7 4 7 7 . 5 1 Matter Fused 45 | . . . 3 3 8 7 6 11 2 5 . Heat Flow Errors 27 | . . . 4 6 2 2 2 4 1 4 2 Energy Discharges 26 | . . . 6 1 1 5 6 5 1 1 . Parts Fused 5 | . . . . 2 1 . 1 1 . . . Data Loss (minor) 22 | . . . 3 4 1 3 3 5 1 1 1 Data Loss (major) 6 | . . . 2 . 2 1 . 1 . . . Misfires 6 | . . . . . 2 . 2 1 . 1 . Alerts 5 | . . . . 1 1 1 . 1 . . 1 Weapon Failures 5 | . . . 1 . . 1 2 . . 1 . Overload Shots . | . . . . . . . . . . . . Overflow Damage 188 | . . . . 44 89 . 36 4 . . 15 Projectiles 51 | . . . . . . . 36 . . . 15 Explosions 137 | . . . . 44 89 . . 4 . . . Melee . | . . . . . . . . . . . . Knockbacks 2 | . . . . . . 1 . . . . 1 Impact 2 | . . . . . . 1 . . . . 1 Kinetic . | . . . . . . . . . . . . Secondary . | . . . . . . . . . . . . Self-Inflicted Damage 479 | . 60 . 134 56 228 . . . . . 1 Shots 14 | . 3 . 4 2 5 . . . . . . Rammed 26 | . 1 . 1 2 5 2 . . . . 15 Targets Rammed 27 | . 1 . 1 3 5 2 . . . . 15 Kicked . | . . . . . . . . . . . . Crushed 1 | . . . . 1 . . . . . . . Highest Temperature 428 | . 18 . 410 260 387 282 271 250 141 258 428 Average Temperature 102 | . 11 . 95 88 110 87 93 82 88 97 156 Received Heat Transfer 1704 | . 54 . 372 111 801 162 162 . . 30 12 Effects 3 | . . . . . 2 . . . . . 1 Interference 1 | . . . . . 1 . . . . . . Short Circuit 1 | . . . . . . . . . . . 1 Damage (minor) 1 | . . . . . 1 . . . . . . Siege Activations . | . . . . . . . . . . . . Martial Activations . | . . . . . . . . . . . . Shielding Activations . | . . . . . . . . . . . . Robots Disrupted . | . . . . . . . . . . . . Combat Hostiles . | . . . . . . . . . . . . Robots Corrupted 1 | . . . . . . . 1 . . . . Combat Hostiles 1 | . . . . . . . 1 . . . . Parts Fried 21 | . . . 6 1 1 4 7 . . . 2 Impact Corruptions . | . . . . . . . . . . . . Robots Melted . | . . . . . . . . . . . . Combat Hostiles . | . . . . . . . . . . . . Parts Melted 19 | . . . 1 . 4 3 5 . . . 6 Heat Transferred 7221 | . . . 550 100 2468 987 1050 100 . 50 1916 Parts Sabotaged . | . . . . . . . . . . . . Parts Stolen . | . . . . . . . . . . . . Parts Stripped . | . . . . . . . . . . . . Power Chain Reactions 8 | . . . 5 1 2 . . . . . . Alert | -11 -10 -10 -9 -9 -8 -7 -7 -7 -7 -6 -6 ------- Run | Yrd Mat Min Mat Min Mat Fac Low Low Dat Pro Fac Maximum Alert Level 1 | . . . 1 . 1 . . . . . . Low Security (%) 83 | 100 100 100 76 100 52 100 . . . . 100 Level 1 16 | . . . 23 . 47 . . . . . . Level 2 . | . . . . . . . . . . . . Level 3 . | . . . . . . . . . . . . Level 4 . | . . . . . . . . . . . . Level 5 . | . . . . . . . . . . . . High Security . | . . . . . . . . . . . . Max Security . | . . . . . . . . . . . . Peak Influence 330 | 10 67 7 285 177 330 144 . . . . 31 Initial 144 | . . 7 . 86 . 144 . . . . . Average 75 | . 16 . 109 47 160 42 . . . . 4 Influence Increases 3874 | 25 343 . 1045 296 1108 484 235 120 . 20 198 Destroy 0b10 Robot/C 2320 | . 180 . 600 200 640 280 180 100 . 20 120 Destroy 0b10 Robot/NC 275 | 25 30 . 100 5 65 25 5 . . . 20 Destroy Leader 632 | . 38 . 166 30 174 134 20 20 . . 50 Allied During Kill 5 | . . . . . 5 . . . . . . Successful Hack 123 | . 31 . 40 . 40 12 . . . . . Disable Machine 180 | . 15 . 45 . 90 30 . . . . . Destroy Structure 204 | . 34 . 49 61 49 3 . . . . 8 Lose Combat Pursuer 135 | . 15 . 45 . 45 . 30 . . . . Influence Decreases 3874 | 25 324 19 823 518 789 705 315 138 . 20 198 Entered New Map 364 | . . 12 . 136 . 175 37 4 . . . Time Decay 2768 | 25 324 7 528 330 514 470 266 134 . 20 150 Lost Part 292 | . . . 30 52 90 60 12 . . . 48 Lost Ally 35 | . . . . . 35 . . . . . . Purge Threat 415 | . . . 265 . 150 . . . . . . Squads Dispatched 14 | . 1 . 1 . 5 5 . . . . 2 Investigation 3 | . 1 . 1 . . 1 . . . . . Extermination 6 | . . . . . . 4 . . . . 2 Reinforcement 2 | . . . . . 2 . . . . . . Assault . | . . . . . . . . . . . . Garrison 3 | . . . . . 3 . . . . . . Intercept . | . . . . . . . . . . . . Searches Triggered . | . . . . . . . . . . . . Construction Impeded . | . . . . . . . . . . . . Haulers Reinforced . | . . . . . . . . . . . . Active Scanning Responses . | . . . . . . . . . . . . Cargo Convoy Interrupts . | . . . . . . . . . . . . Stealth | -11 -10 -10 -9 -9 -8 -7 -7 -7 -7 -6 -6 --------- Run | Yrd Mat Min Mat Min Mat Fac Low Low Dat Pro Fac Distress Signals 11 | . 2 . 5 . 2 2 . . . . . Communications Jammed . | . . . . . . . . . . . . Distress Signals . | . . . . . . . . . . . . Times Spotted 187 | . 15 . 48 26 50 22 11 5 . 1 9 Peak Tracking Total 11 | . 4 . 8 11 8 4 5 4 . 1 3 Tactical Retreats 8 | . 1 . 3 1 2 . 1 . . . . Traps | -11 -10 -10 -9 -9 -8 -7 -7 -7 -7 -6 -6 ------- Run | Yrd Mat Min Mat Min Mat Fac Low Low Dat Pro Fac Traps Triggered 9 | . 1 . 2 . 2 2 . . . . 2 Indirectly . | . . . . . . . . . . . . Trap Hack Attempts 34 | . . . . . . 34 . . . . . Triggered . | . . . . . . . . . . . . Disarmed . | . . . . . . . . . . . . Reprogrammed 2 | . . . . . . 2 . . . . . Reused . | . . . . . . . . . . . . Traps Extracted . | . . . . . . . . . . . . Installed . | . . . . . . . . . . . . Triggered . | . . . . . . . . . . . . Machines | -11 -10 -10 -9 -9 -8 -7 -7 -7 -7 -6 -6 ---------- Run | Yrd Mat Min Mat Min Mat Fac Low Low Dat Pro Fac Machines Disabled 13 | . 1 . 4 . 6 2 . . . . . Max in Single Turn 3 | . 1 . 1 . 3 1 . . . . . Garrison Access 1 | . . . . . . 1 . . . . . Machines Repaired . | . . . . . . . . . . . . Machines Dismantled . | . . . . . . . . . . . . Machines Sabotaged . | . . . . . . . . . . . . Overloaded Fab Kills . | . . . . . . . . . . . . Hacking | -11 -10 -10 -9 -9 -8 -7 -7 -7 -7 -6 -6 --------- Run | Yrd Mat Min Mat Min Mat Fac Low Low Dat Pro Fac Machines Accessed 44 | . 7 1 11 . 11 6 2 1 4 . 1 Terminals 33 | . 7 . 11 . 9 4 . 1 . . 1 Fabricators . | . . . . . . . . . . . . Repair Stations 1 | . . . . . 1 . . . . . . Recycling Units . | . . . . . . . . . . . . Scanalyzers . | . . . . . . . . . . . . Garrison Access 3 | . . . . . 1 2 . . . . . Total Hacks 144 | . 26 1 37 . 29 11 6 1 32 . 1 Successful 86 | . 14 1 17 . 11 4 6 1 32 . . Failed 58 | . 12 . 20 . 18 7 . . . . 1 Catastrophic 13 | . 1 . 5 . 2 4 . . . . 1 Database Lockouts . | . . . . . . . . . . . . Manual 82 | . 24 . 26 . 24 7 . . . . 1 Terminals 96 | . 26 . 37 . 24 7 . 1 . . 1 Fabricators . | . . . . . . . . . . . . Repair Stations 2 | . . . . . 2 . . . . . . Recycling Units . | . . . . . . . . . . . . Scanalyzers . | . . . . . . . . . . . . Garrison Access 7 | . . . . . 3 4 . . . . . Terminal Hacks 56 | . 6 1 8 . 2 . 6 1 32 . . Record 17 | . . . . . . . 5 1 11 . . Part Schematic 12 | . 1 . . . . . . . 11 . . Robot Schematic 7 | . . . . . . . . . 7 . . Robot Analysis 3 | . 2 . 1 . . . . . . . . Prototype ID Bank 3 | . . . . . . . . . 3 . . Open Door 2 | . . 1 . . . . 1 . . . . Branch Access Points 1 | . . . . . 1 . . . . . . Terminal Index 2 | . 1 . 1 . . . . . . . . Alert Level 2 | . . . 2 . . . . . . . . Unreport Threat 4 | . 1 . 2 . 1 . . . . . . Hauler Manifests 1 | . . . 1 . . . . . . . . Registered Components 1 | . 1 . . . . . . . . . . Zone Layout 1 | . . . 1 . . . . . . . . Fabricator Hacks . | . . . . . . . . . . . . Repair Station Hacks 2 | . . . . . 2 . . . . . . Scan Component 1 | . . . . . 1 . . . . . . Repair 1 | . . . . . 1 . . . . . . Recycling Unit Hacks . | . . . . . . . . . . . . Scanalyzer . | . . . . . . . . . . . . Garrison Access Hacks 1 | . . . . . . 1 . . . . . Seal Access 1 | . . . . . . 1 . . . . . Unauthorized Hacks 27 | . 8 . 9 . 7 3 . . . . . Terminals 27 | . 8 . 9 . 7 3 . . . . . Botnet 8 | . 2 . 2 . 1 3 . . . . . Skim 19 | . 6 . 7 . 6 . . . . . . Fabricators . | . . . . . . . . . . . . Repair Stations . | . . . . . . . . . . . . Recycling Units . | . . . . . . . . . . . . Scanalyzers . | . . . . . . . . . . . . Garrison Access . | . . . . . . . . . . . . Data Cores Recovered 2 | . . . 2 . . . . . . . . Used 1 | . . . 1 . . . . . . . . Hacking Detections 34 | . 7 . 11 . 10 5 . . . . 1 Full Trace Events 1 | . 1 . . . . . . . . . . Feedback Events . | . . . . . . . . . . . . Feedback Blocked . | . . . . . . . . . . . . Robot Schematics Acquired 7 | . . . . . . . . . 7 . . Robots Built . | . . . . . . . . . . . . Authchips . | . . . . . . . . . . . . Time . | . . . . . . . . . . . . Total Robot Build Rating . | . . . . . . . . . . . . Part Schematics Acquired 12 | . 1 . . . . . . . 11 . . Parts Built . | . . . . . . . . . . . . Authchips . | . . . . . . . . . . . . Time . | . . . . . . . . . . . . Total Part Build Rating . | . . . . . . . . . . . . Parts Repaired . | . . . . . . . . . . . . Time 26 | . . . . . 26 . . . . . . Parts Recycled . | . . . . . . . . . . . . Recycled Matter . | . . . . . . . . . . . . Retrieved Matter . | . . . . . . . . . . . . Retrieved Components . | . . . . . . . . . . . . Parts Scanalyzed . | . . . . . . . . . . . . Part Schematics Acquired . | . . . . . . . . . . . . Parts Damaged . | . . . . . . . . . . . . Bothacking | -11 -10 -10 -9 -9 -8 -7 -7 -7 -7 -6 -6 ------------ Run | Yrd Mat Min Mat Min Mat Fac Low Low Dat Pro Fac Used RIF Installer . | . . . . . . . . . . . . Robots Hacked 1 | . . . . . . . 1 . . . . Non-combat 1 | . . . . . . . 1 . . . . Combat . | . . . . . . . . . . . . Robot Hacks Applied 1 | . . . . . . . 1 . . . . parse_system 1 | . . . . . . . 1 . . . . Relay Couplers Released . | . . . . . . . . . . . . Fabnet Peak Effective % . | . . . . . . . . . . . . Robots Rewired . | . . . . . . . . . . . . Allies Hacked . | . . . . . . . . . . . . Hacks Repelled . | . . . . . . . . . . . . Allies | -11 -10 -10 -9 -9 -8 -7 -7 -7 -7 -6 -6 -------- Run | Yrd Mat Min Mat Min Mat Fac Low Low Dat Pro Fac Total Allies 2 | . . . . 2 . . . . . . . Largest Group 2 | . . . . 2 2 . . . . . . Highest-Rated Group 43 | . . . . 43 43 . . . . . . Highest-Rated Ally 31 | . . . . 31 31 . . . . . . Total Orders 3 | . . . . . 3 . . . . . . ROAM 1 | . . . . . 1 . . . . . . EXPLORE 1 | . . . . . 1 . . . . . . RETURN 1 | . . . . . 1 . . . . . . Ally Attacks 13 | . . . . . 13 . . . . . . Total Damage 164 | . . . . . 164 . . . . . . Kills 1 | . . . . . 1 . . . . . . Allies Corrupted . | . . . . . . . . . . . . Allies Melted . | . . . . . . . . . . . . Intel | -11 -10 -10 -9 -9 -8 -7 -7 -7 -7 -6 -6 ------- Run | Yrd Mat Min Mat Min Mat Fac Low Low Dat Pro Fac Active Infowar (turns) 5652 | 79 1416 935 1274 135 149 1161 . . . . 503 Sensors 503 | . . . . . . . . . . . 503 Terrain 3 | . . . . . . . . . . . 3 Seismic 5149 | 79 1416 935 1274 135 149 1161 . . . . . Machine Analysis 2 | . . . . . . . . . . . 2 Robot Analysis Total 3 | . 2 . 1 . . . . . . . . Derelict Logs Recovered 5 | . . 1 . 2 . . . 1 . 1 . Drone Launches 1 | . . . . . 1 . . . . . . Drone Recoveries 1 | . . . . . 1 . . . . . . Exploration | -11 -10 -10 -9 -9 -8 -7 -7 -7 -7 -6 -6 ------------- Run | Yrd Mat Min Mat Min Mat Fac Low Low Dat Pro Fac Turns Passed 15497 | 193 1416 951 2460 1143 3228 2149 1042 1083 127 488 1217 Spaces Moved 6935 | 84 583 395 1096 505 1268 1112 561 653 79 279 320 Core 48 | 4 . . . . . . . . . . 44 Treads 6758 | 80 583 395 1096 505 1139 1112 561 653 79 279 276 Legs . | . . . . . . . . . . . . Wheels 129 | . . . . . 129 . . . . . . Hover . | . . . . . . . . . . . . Flight . | . . . . . . . . . . . . Fastest Speed 50 | 50 160 240 160 160 145 160 160 162 162 162 162 Average Speed 196 | 154 216 240 192 198 225 160 163 162 162 169 304 Slowest Speed 1200 | 160 240 240 240 240 400 240 240 162 162 243 1200 Overloaded Moves . | . . . . . . . . . . . . Propulsion Burnouts . | . . . . . . . . . . . . Robots Hopped . | . . . . . . . . . . . . Potential Cave-ins . | . . . . . . . . . . . . Cave-ins Triggered . | . . . . . . . . . . . . Exploration Rate (%) 61 | 7 87 91 96 75 85 28 58 75 69 51 10 Regions Visited 11 Branch Regions 6 Pre-discovered Areas 10 | . 1 1 4 . 3 . . . 1 . . Known Exits Taken 4 | . 1 1 . 1 . . . . . 1 . Unknown Exits Taken 7 | 1 . . 1 . 1 1 1 1 1 . . Scrap Searched 10 | . . 1 . 1 . . . 5 . 3 . Spaces Dug 69 | . 23 . 40 . 3 3 . . . . . Terrain Destroyed 276 | . 31 . 50 111 60 3 . 15 . . 6 Melee 7 | . . . 1 . 3 3 . . . . . Projectile 8 | . . . . . 1 . . 1 . . 6 AOE 261 | . 31 . 49 111 56 . . 14 . . . Terrain Rammed . | . . . . . . . . . . . . Walls Destroyed . | . . . . . . . . . . . . Machines Disabled . | . . . . . . . . . . . . Actions | -11 -10 -10 -9 -9 -8 -7 -7 -7 -7 -6 -6 --------- Run | Yrd Mat Min Mat Min Mat Fac Low Low Dat Pro Fac Total 7959 | 115 657 398 1293 574 1487 1365 621 668 78 285 418 Wait 171 | . 4 . 18 13 10 93 16 . . . 17 Move 6924 | 83 582 394 1095 504 1267 1111 560 652 78 278 320 Hop . | . . . . . . . . . . . . Pick Up 113 | 7 12 1 23 1 44 14 3 4 . . 4 Fast Attach 41 | 7 . 1 4 1 10 11 1 . . . 6 Attach 57 | . . . 8 8 13 9 5 3 . 2 9 Detach 10 | . . 1 1 . 3 3 . 1 . . 1 Swap 82 | 1 8 1 24 3 21 13 3 2 . 1 5 Drop 101 | 1 5 . 34 . 29 22 3 . . . 7 Fire 390 | 16 45 . 84 41 82 49 29 6 . 4 34 Melee 9 | . . . 1 . 3 4 1 . . . . Ram 15 | . . . . . . . . . . . 15 Kick . | . . . . . . . . . . . . Crush 12 | . 1 . 1 3 5 2 . . . . . Escape Stasis . | . . . . . . . . . . . . Rewire . | . . . . . . . . . . . . Trap 34 | . . . . . . 34 . . . . . Miscellaneous . | . . . . . . . . . . . . Route ------- -11/Scrapyard -10/Materials (discovered 6 exits: *Mat x3 / *Min x2 / Sub) -10/Mines (discovered 3 exits: *Mat x2 / *Sub) -9/Materials (discovered 4 exits: *Mat x3 / [*Min]) -9/Mines (discovered 3 exits: *Mat x2 / [*Exi]) -8/Materials (discovered 4 exits: *Fac x2 / *Sto x2) -7/Factory (discovered 3 exits: Fac x2 / *Low) -7/Lower Caves -7/Lower Caves (discovered 2 exits: *Fac / *Dat) -7/Data Miner -6/Proximity Caves -6/Factory (discovered 1 exit: Fac) History --------- Turn | Location | Event 8 | -11/Scrapyard | Discovered new exit (range 15) 194 | -11/Scrapyard | Entered Materials 323 | -10/Materials | Build established: Mutant 379 | -10/Materials | Discovered new exit (range 5) 492 | -10/Materials | Discovered new exit (range 9) 718 | -10/Materials | Discovered new exit (range 10) 911 | -10/Materials | Loaded intel: 7 trap records 978 | -10/Materials | Identified exit to Materials 978 | -10/Materials | Identified exit to Mines 978 | -10/Materials | Identified exit to Subcaves 1078 | -10/Materials | Learned Storage trap positions 1112 | -10/Materials | Learned location of 2 exits from Mines 1170 | -10/Materials | Learned location of Mines (-9) 1212 | -10/Materials | Learned 2 Mines zone layouts 1610 | -10/Materials | Entered Mines 1631 | -10/Mines | Found the Drone Emporium 1642 | -10/Mines | Found Prototype Device 1642 | -10/Mines | Identified Thief Drone Bay 1741 | -10/Mines | Found a hidden stash of uninstalled traps 1775 | -10/Mines | Learned location of Storage (-8) 1782 | -10/Mines | Found a Scrap Suit stashed away for nefarious purposes 1839 | -10/Mines | Received a Rocket Launcher from a helpful Derelict 2561 | -10/Mines | Entered Materials 2561 | -9/Materials | Evolved 2 slots: Propulsion x1, Weapon x1 2797 | -9/Materials | Discovered new exit (range 16) 3012 | -9/Materials | Build established: Scavenger-Gunner 3351 | -9/Materials | Build established: Scavenger-Tank 3951 | -9/Materials | Identified exit to Materials 4103 | -9/Materials | Learned 2 Storage zone layouts 4165 | -9/Materials | Loaded intel: 2 recycling unit locations 4258 | -9/Materials | Learned location of Recycling (-8) 4639 | -9/Materials | Discovered exit to Materials (range 10) 4793 | -9/Materials | Discovered exit to Materials (range 16) 4862 | -9/Materials | Build established: Scavenger-Gunner 5021 | -9/Materials | Entered Mines 5044 | -9/Mines | Discovered exit to Materials (range 7) 5045 | -9/Mines | Met a Derelict bent on vengeance 5157 | -9/Mines | Core integrity fell below 50% 5236 | -9/Mines | Assembled infested the area 5305 | -9/Mines | Destroyed 18 combat bots 5538 | -9/Mines | Discovered exit to Materials (range 5) 5612 | -9/Mines | Build established: Scavenger-Tank 5686 | -9/Mines | Learned Materials terminal intel 5868 | -9/Mines | Core integrity fell below 20% 5902 | -9/Mines | Lost 8 parts (2n2u4w) 5980 | -9/Mines | Deemed a non-threat by the Exiles lab entrance 5980 | -9/Mines | Discovered new exit (range 5) 6152 | -9/Mines | Build established: Mutant 6164 | -9/Mines | Entered Materials 6164 | -8/Materials | Accompanied by 2 allies 6164 | -8/Materials | Evolved 2 slots: Utility x2 6165 | -8/Materials | Identified exit to Storage 6166 | -8/Materials | Loaded intel: 12 terminal locations 6169 | -8/Materials | Led the pair of lost Derelicts to an unsafe place 6714 | -8/Materials | Build established: Scavenger-Gunner 6904 | -8/Materials | Garrison activated, responded to threat 6990 | -8/Materials | Lost 7 parts (1p2n1u3w) 7202 | -8/Materials | Build established: Gunner 7501 | -8/Materials | Discovered new exit (range 3) 7503 | -8/Materials | Discovered exit to Storage (range 6) 7548 | -8/Materials | Build established: Scavenger-Gunner 8048 | -8/Materials | Discovered new exit (range 16) 8307 | -8/Materials | Learned location of 1 exit from Storage 8342 | -8/Materials | Learned Storage garrison access intel 8415 | -8/Materials | Learned Storage stockpile data 9392 | -8/Materials | Entered Factory 9392 | -7/Factory | Evolved 2 slots: Propulsion x1, Utility x1 9393 | -7/Factory | Identified exit to Factory 10585 | -7/Factory | Lost 4 parts (1u3w) 11300 | -7/Factory | Discovered new exit (range 16) 11541 | -7/Factory | Entered Lower Caves 11635 | -7/Lower Caves | P-60 Hacker assimilated allied 6I-2YI(S) 11910 | -7/Lower Caves | Attracted the attention of an 0b10 base 12227 | -7/Lower Caves | Build established: Scavenger-Mutant 12407 | -7/Lower Caves | Entered an active Warlord outpost 12455 | -7/Lower Caves | Learned Armory trap positions 12455 | -7/Lower Caves | Learned Extension security intel 12552 | -7/Lower Caves | Discovered new exit (range 14) 12583 | -7/Lower Caves | Entered another Lower Caves area 12607 | -7/Lower Caves | Discovered exit to Factory (range 12) 12611 | -7/Lower Caves | Encountered a Warlord checkpoint 12763 | -7/Lower Caves | Learned location of 1 exit from Factory 12889 | -7/Lower Caves | Build established: Scavenger-Gunner 13615 | -7/Lower Caves | Discovered new exit (range 14) 13629 | -7/Lower Caves | Found DCF Scrap (11 items) 13666 | -7/Lower Caves | Entered Data Miner 13666 | -7/Data Miner | Discovered new exit (range 6) 13697 | -7/Data Miner | Met Data Miner 13731 | -7/Data Miner | Learned location of Section 7 (-2) 13731 | -7/Data Miner | Acquired the access code to Warlord's prototype stash 13757 | -7/Data Miner | Received God Mode back door access code from Data Miner 13793 | -7/Data Miner | Entered Proximity Caves 13896 | -6/Proximity Caves | Learned 4 Factory zone layouts 13942 | -6/Proximity Caves | Attracted the attention of an 0b10 checkpoint 14041 | -6/Proximity Caves | Found DCF Scrap (15 items) 14208 | -6/Proximity Caves | Spotted B-75 Beast 14260 | -6/Proximity Caves | Build established: Gunner 14263 | -6/Proximity Caves | Discovered exit to Factory (range 12) 14281 | -6/Proximity Caves | Entered Factory 14281 | -6/Factory | Evolved 2 slots: Utility x2 14282 | -6/Factory | Identified exit to Factory 14852 | -6/Factory | Lost 9 parts (5n1u3w) 15100 | -6/Factory | Build established: Mutant 15406 | -6/Factory | System corruption reached 10% 15412 | -6/Factory | Core integrity fell below 50% 15421 | -6/Factory | Lost 5 parts (1p2u2w) 15466 | -6/Factory | Core integrity fell below 20% 15498 | -6/Factory | Destroyed by P-60 Hacker with Shock Rifle Last Messages --------------- 15409_ Slammed into P-60 Hacker. 15435_ Target Analyzer destroyed. 15437_ Slammed into P-60 Hacker. 15444_ Emergency Access malfunctions. 15444_ Slammed into P-60 Hacker. 15450_ Weapon Cycler destroyed. 15451_ Slammed into P-60 Hacker. 15451_ Adv. Targeting Computer broken. 15451_ Destabilizing: Short circuit. 15455_ System corrupted: IFF burst signal emitted. 15458_ Slammed into P-60 Hacker. 15473_ System corrupted: Component data lost. 15477_ Cryofiber Web destroyed. 15479_ Slammed into P-60 Hacker. 15486_ P-60 Hacker knocked back. 15489_ U-05 Engineer repairs door. 15490_ U-05 Engineer lays Concrete. 15492_ System corrupted: Heat flow error (+289). 15493_ Slammed into P-60 Hacker. Map ----- +----------------------------------------------------+ | ????????????????????????????????????# " | | ????????????????????????????????????# | | ????????????????????????????????????# | | ????????????????????????????????????# " | | ????????????????????????????????????# " | | ????????????????????????????????????# " | | ????????????????????????????????????# " | | ????????????????????????????????????# " | | ????????????????????????????????????# # | | ?????????????????????????##################+###### | | ???????????????????????? | | ???????????????????????? | | ??????????????????????? ^^ | | ??????????????????????? ^ | | ??????????????????????? ^ | | ???????????????????????????##+#######"""" #### | | ???????????????????????????# %% # #??? | | ???????????????????????????# " #??? | | ???????????????????????????# # #??? | | ???????????????????????????# % # #??? | | ???????????????????????????# % " #??? | | ???????????????????????????# % % # #??? | | ??????????????????########## # #??? | | ??????????????????# # % # #### | | ??????????????????# # # | | ????????????# + @%+% # | | ??????????????????# p #%% # | | ??????????????????#"""" #%%% # | | ??????????????????#"""" ############## | | ???????????????????"""" #????????????####/### | | ???????????????????"""" #???????????? # | | ??????????????????? #???????????? # | | ???????????????????#########????????????????" ?# | | ????????????????????????????????????????????? ?# | | ???????????????????????????????????????????????# | | ???????????????????????????????????????????????# | | ??????????????????????????????????????????######## | | ?????????????????????????????????????????# | | ????????????????????????????????????????## !! | | ?????????????????????????????????????????# !! | | ?????????????????????????????????????????# !! | | ?????????????????????????????????????????# | | ?????????????????????????????????????????# | | ????????????????????????????#########????# ! | | ????????????????????????????# #????# | | ????????????????????????????# #????# | | ????????????????????????????# #????# | | ????????????????????????????# !!!#????# | | ????????????????????????????# = !#????# | | ????????????????????????????####+####????######### | +----------------------------------------------------+ Best States ------------- Heat Dissipation 48 Energy Generation 19 Energy Capacity 315 Matter Stores 300 Matter Capacity 300 Sight Range 16 Robot Scan Range 16 Terrain Scan Density 10 Base Temperature (-) 100 Armor Coverage 225 Weapon Cycling 15 Evasion (%) 40 Targeting Accuracy 8 Target Analysis 5 Core Analysis 6 Recoil Reduction 4 Item Schematics ----------------- Hcp. Storage Unit | -10/Materials | Hacked Combat Drone Bay | -7/Data Miner | Free Lgt. Regenerative Plating | -7/Data Miner | Free Biomechanical Wings | -7/Data Miner | Free Gravity Neutralizer | -7/Data Miner | Free Gui. EMP Blaster | -7/Data Miner | Free Thunder Leg | -7/Data Miner | Free Imp. Kinecellerator | -7/Data Miner | Free Variable Charge Gun | -7/Data Miner | Free Focal Shield | -7/Data Miner | Free Lance | -7/Data Miner | Free Hardcell Cannon | -7/Data Miner | Free Robot Schematics ------------------ G-50 Soldier | -7/Data Miner | Free R-10 Processor | -7/Data Miner | Free W-25 Informer | -7/Data Miner | Free L-41 Fighter | -7/Data Miner | Free C-35 Carver | -7/Data Miner | Free B-60 Warrior | -7/Data Miner | Free S-27 Virus | -7/Data Miner | Free Fabricated ------------ Nothing Repaired ---------- Nothing Alien Tech Used ----------------- None Achievements -------------- Exterminator Challenges ------------ None Game ------ Seed MultireflexWeldingRay Manual? 0 Play Time 01:15:37 Cumulative 64.7 hours Start 2025.07.06 @ 14:31:49 End 2025.07.06 @ 15:44:41 Sessions 1 Manual Loads 0 Difficulty Rogue Special Mode None Game No. 60 Rogue 60 Adventurer 0 Explorer 0 Win Type - Total 1 Types 1/0/0/0/0/0/0/0/0/0 Lore% 39 Gallery% 38 Achievement% 39 Wizard Run 0 Options --------- Layout 1 ASCII 0 Keyboard 1 Movement Arrows Keybinds 0 Fullscreen 1 Font 24/Smallcaps Map View 50x40 Zoom Use 0% Tactical HUD 1 Map Filters NONE Filters NONE Steam 1 RUN: a6c1c651-c51c-4808-9351-9f86753cce64